fUST/lending_fUST_20241103
["ID","MTS","AMOUNT","RATE_DAILY","PERIOD"]
[341193783,1730596242094,-500.0,0.00030136,4]
[341193784,1730596242103,-507.36051097,0.00030136,4]
[341193785,1730596242113,-500.0,0.00030136,4]
[341193786,1730596242122,-500.0,0.00030136,4]
[341193787,1730596242132,-458.45860326,0.00030136,4]
[341193788,1730596242141,-540.3751073,0.00030136,4]
[341193789,1730596242151,-502.71976538,0.00030136,4]
[341193790,1730596242160,-524.77986229,0.00030136,4]
[341193791,1730596242169,-500.0,0.00030136,4]
[341193792,1730596242179,-527.56,0.00030136,4]
[341193793,1730596242193,-523.57950383,0.00030136,4]
[341193794,1730596242202,-501.00627428,0.00030136,4]
[341193795,1730596242211,-500.0,0.00030136,4]
[341193796,1730596242220,-537.04566632,0.00030136,4]
[341193797,1730596242230,-574.11,0.00030136,4]
[341193798,1730596242239,-500.0,0.00030136,4]
[341193799,1730596242248,-501.29854158,0.00030136,4]
[341193800,1730596242258,-572.31,0.00030136,4]
[341193801,1730596242268,-500.0,0.00030136,4]
[341193802,1730596242281,-500.0,0.00030136,4]
[341193803,1730596242292,-500.0,0.00030136,4]
[341193804,1730596242301,-500.0,0.00030136,4]
[341193805,1730596242313,-500.0,0.00030136,4]
[341193806,1730596242323,-604.76,0.00030136,4]
[341193807,1730596242333,-504.94192636,0.00030136,4]
[341193808,1730596242344,-500.0,0.00030136,4]
[341193809,1730596242353,-618.98616778,0.00030136,4]
[341193810,1730596242362,-500.0,0.00030136,4]
[341193811,1730596242371,-500.0,0.00030136,4]
[341193812,1730596242381,-500.0,0.00030136,4]
[341193813,1730596242391,-504.54884409,0.00030136,4]
[341193814,1730596242401,-501.95367123,0.00030136,4]
[341193815,1730596242411,-500.0,0.00030136,4]
[341193816,1730596242420,-500.0,0.00030136,4]
[341193817,1730596242429,-505.58408119,0.00030136,4]
[341193818,1730596242438,-241.01438062,0.00030136,4]
[341193819,1730596242447,-500.0,0.00030136,4]
[341193820,1730596242456,-535.03727275,0.00030136,4]
[341193821,1730596242465,-500.0,0.00030136,4]
[341193822,1730596242475,-502.78324507,0.00030136,4]
[341193823,1730596242485,-501.70620443,0.00030136,4]
[341193824,1730596242493,-517.29302145,0.00030136,4]
[341193825,1730596242503,-431.14103294,0.00030136,4]
[341193826,1730596242512,-502.36314886,0.00030136,4]
[341193827,1730596242523,-500.0,0.00030136,4]
[341193828,1730596242614,-503.19414435,0.00030136,4]
[341193829,1730596242624,-1092.66,0.00030136,3]
[341193830,1730596242633,-400.90898615,0.00030136,4]
[341193831,1730596242642,-503.27751896,0.00030136,4]
[341193832,1730596242652,-500.0,0.00030136,4]
[341193833,1730596242662,-500.0,0.00030136,4]
[341193834,1730596242672,-501.90559384,0.00030136,4]
[341193835,1730596242682,-500.0,0.00030136,4]
[341193836,1730596242691,-500.0,0.00030167,5]
[341193837,1730596242702,-392.01325301,0.00030173,5]
[341193838,1730596242711,-500.0,0.00030173,5]
[341193839,1730596242720,-500.0,0.00030173,5]
[341193840,1730596242730,-500.0,0.00030173,5]
[341193841,1730596242740,-203.386361,0.00030181,2]
[341193842,1730596242749,-331.87,0.0003041,4]
[341193843,1730596242759,-293.97,0.0003041,4]
[341193844,1730596242768,-500.0,0.0003041,4]
[341193845,1730596242778,-500.0,0.0003041,4]
[341193846,1730596242787,-598.31,0.0003041,4]
[341193847,1730596242797,-500.0,0.0003041,4]
[341193848,1730596242807,-482.44817967,0.0003041,4]
[341193849,1730596242817,-207.83,0.0003041,4]
[341193850,1730596242826,-155.43,0.0003041,4]
[341193851,1730596242835,-894.25,0.0003041,4]
[341193853,1730596242844,-500.0,0.0003041,4]
[341193855,1730596242854,-324.85,0.0003041,4]
[341193857,1730596242863,-619.28,0.0003041,4]
[341193859,1730596242874,-259.64,0.0003041,4]
[341193860,1730596242885,-398.12950852,0.0003041,4]
[341193861,1730596242894,-217.70296974,0.0003041,4]
[341193862,1730596242905,-170.08032577,0.0003041,4]
[341193863,1730596242916,-475.03,0.0003041,4]
[341193864,1730596242928,-533.63,0.0003041,4]
[341193865,1730596242938,-500.0,0.0003041,4]
[341193866,1730596242949,-500.0,0.0003041,4]
[341193867,1730596242959,-500.0,0.0003041,4]
[341193868,1730596242969,-500.0,0.0003041,4]
[341193869,1730596242978,-500.0,0.0003041,4]
[341193870,1730596242987,-210.37815317,0.0003041,4]
[341193871,1730596242997,-500.0,0.0003041,4]
[341193872,1730596243007,-240.53228435,0.0003041,4]
[341193873,1730596243018,-1092.66,0.0003041,3]
[341193874,1730596243028,-500.0,0.0003041,4]
[341193875,1730596243038,-151.949325,0.00030487,2]
[341193876,1730596243047,-151.949325,0.00030487,2]
[341193877,1730596243057,-182.224548,0.00030554,2]
[341193878,1730596243066,-172.318092,0.00030554,2]
[341193879,1730596243076,-203.386361,0.00030554,2]
[341193880,1730596243085,-153.0,0.00030658,2]
[341193881,1730596243095,-153.0,0.00030658,2]
[341193882,1730596243104,-153.0,0.00030658,2]
[341193884,1730596243114,-153.0,0.00030658,2]
[341193885,1730596243125,-153.0,0.00030658,2]
[341193886,1730596243135,-218.0918499,0.00030658,2]
[341193887,1730596243144,-298.9134531,0.00030684,4]
[341193888,1730596243154,-581.87,0.00030684,4]
[341193889,1730596243163,-499.03,0.00030684,4]
[341193890,1730596243172,-894.25,0.00030684,4]
[341193891,1730596243182,-500.0,0.00030684,4]
[341193892,1730596243193,-500.0,0.00030684,4]
[341193893,1730596243202,-500.0,0.00030684,4]
[341193894,1730596243212,-520.7,0.00030684,4]
[341193895,1730596243223,-500.0,0.00030684,4]
[341193896,1730596243233,-500.0,0.00030684,4]
[341193897,1730596243242,-1092.66,0.00030684,3]
[341193898,1730596243251,-500.0,0.00030684,4]
[341193899,1730596243261,-153.0,0.00030712,2]
[341193901,1730596243270,-203.386361,0.00030926,2]
[341193902,1730596243280,-894.25,0.00030958,4]
[341193903,1730596243290,-500.0,0.00030958,4]
[341193904,1730596243299,-500.0,0.00030958,4]
[341193905,1730596243309,-500.0,0.00030958,4]
[341193906,1730596243318,-500.0,0.00030958,4]
[341193907,1730596243328,-500.0,0.00030958,4]
[341193908,1730596243339,-1092.66,0.00030958,3]
[341193909,1730596243350,-500.0,0.00030958,4]
[341193910,1730596243359,-989.36071967,0.00031,2]
[341193911,1730596243370,-20786.74838936,0.00031,120]
[341193914,1730596243502,-419.97538683,0.0003099,10]
[341193924,1730596895916,3500.0,0.00033515,30]
[341193970,1730597446866,-320.0,0.00026223,2]
[341193971,1730597446879,-340.0,0.00026223,2]
[341193972,1730597446888,-166.666667,0.00026996,2]
[341193973,1730597446897,-267.403733,0.00027219,2]
[341193975,1730597627298,1901.71059624,0.00033515,120]
[341193977,1730597730780,207.0,0.00033515,30]
[341193979,1730598005446,5161.91808084,0.00018264,2]
[341193988,1730598497729,1364.70916812,0.00033516,30]
[341194002,1730598606656,5053.12694584,0.00018264,2]
[341194017,1730598631891,-166.666667,0.00024684,2]
[341194018,1730598631901,-256.52315062,0.00024821,2]
[341194019,1730598631911,-46.89385132,0.00024921,2]
[341194026,1730598638343,-594.39216378,0.00024921,2]
[341194027,1730598638353,-23888.78851463,0.00025218,2]
[341194061,1730599205198,1533.9160053,0.00017919,2]
[341194099,1730599832259,-170.972025,0.00023884,2]
[341194101,1730599832269,-300.0,0.00024297,2]
[341194103,1730599832278,-24900.0,0.00024298,2]
[341194105,1730599832287,-186.191102,0.00024442,2]
[341194107,1730599832297,-336.25278886,0.00025,2]
[341194109,1730599832306,-6145.943812,0.00025123,2]
[341194111,1730599832316,-1699.18985456,0.00025385,2]
[341194114,1730599832325,-1963.07851578,0.00025486,2]
[341194116,1730599832335,-172.5080342,0.00025615,2]
[341194118,1730599832345,-186.191102,0.00025715,2]
[341194120,1730599832354,-2006.0,0.00026,4]
[341194122,1730599832366,-420.0,0.0002634,2]
[341194124,1730599832376,-500.0,0.00026484,2]
[341194126,1730599832385,-412.47368975,0.00026484,2]
[341194128,1730599832394,-500.0,0.00026484,2]
[341194130,1730599832404,-212.26454272,0.00026485,2]
[341194132,1730599832413,-152.206,0.00026485,2]
[341194134,1730599832423,-1444.309,0.00026485,2]
[341194136,1730599832432,-512.61670527,0.000268,2]
[341194138,1730599832441,-2590.22510407,0.00026852,2]
[341194141,1730599832453,-182.86891843,0.00026852,2]
[341194143,1730599832462,-500.0,0.00026863,2]
[341194145,1730599832472,-163.0,0.00027,2]
[341194147,1730599832481,-153.0,0.00027126,2]
[341194149,1730599832490,-153.0,0.00027126,2]
[341194151,1730599832499,-153.0,0.00027126,2]
[341194153,1730599832508,-153.0,0.00027126,2]
[341194155,1730599832518,-153.0,0.00027126,2]
[341194157,1730599832527,-153.0,0.00027126,2]
[341194159,1730599832536,-153.0,0.00027126,2]
[341194161,1730599832545,-153.0,0.00027126,2]
[341194162,1730599832554,-153.0,0.00027126,2]
[341194164,1730599832563,-153.0,0.00027126,2]
[341194166,1730599832572,-153.0,0.00027126,2]
[341194168,1730599832581,-153.0,0.00027126,2]
[341194170,1730599832591,-153.0,0.00027126,2]
[341194172,1730599832601,-153.0,0.00027126,2]
[341194174,1730599832610,-153.0,0.00027126,2]
[341194176,1730599832622,-153.0,0.00027126,2]
[341194178,1730599832633,-153.0,0.00027126,2]
[341194180,1730599832643,-153.0,0.00027126,2]
[341194182,1730599832653,-153.0,0.00027126,2]
[341194184,1730599832662,-153.0,0.00027126,2]
[341194186,1730599832672,-153.0,0.00027126,2]
[341194188,1730599832681,-153.0,0.00027126,2]
[341194190,1730599832691,-153.0,0.00027126,2]
[341194192,1730599832700,-170.972025,0.0002714,2]
[341194194,1730599832709,-160.77163374,0.00027498,10]
[341194196,1730599832719,-9112.22159045,0.00027499,2]
[341194207,1730599838248,-352.106,0.00026485,2]
[341194208,1730599838258,-230.31153839,0.00027499,2]
[341194209,1730599838270,-1382.72882,0.00027499,2]
[341194210,1730599838337,-760.60383964,0.00027499,2]
[341194211,1730599838346,-1183.90820428,0.00027744,2]
[341194283,1730599846229,-515.28165023,0.00027744,2]
[341194284,1730599846240,-245.5537932,0.00027781,2]
[341194285,1730599846250,-306.8858374,0.00027781,2]
[341194286,1730599846260,-313.734833,0.00027781,2]
[341194287,1730599846270,-167.686,0.000278,30]
[341194288,1730599846280,-150.106,0.00027835,2]
[341194289,1730599846290,-502.70842752,0.00028232,2]
[341194290,1730599846300,-167.638,0.00028727,120]
[341194291,1730599846309,-4348.80523659,0.00029008,2]
[341194292,1730599846319,-486.82621115,0.00029864,2]
[341194293,1730599846328,-223.398865,0.000299,2]
[341194294,1730599846338,-326.5478484,0.0003,2]
[341194295,1730599846348,-154.804,0.0003,2]
[341194296,1730599846359,-235.0,0.0003,2]
[341194297,1730599846369,-1699.18985451,0.00030104,2]
[341194298,1730599846380,-240.84,0.0003011,3]
[341194299,1730599846389,-334.43474855,0.0003011,3]
[341194300,1730599846402,-388.10525145,0.0003011,3]
[341194301,1730599846412,-219.24434855,0.0003012,2]
[341194308,1730600054505,184.605021,0.00033511,120]
[341194309,1730600250895,231.6974606,0.00013973,2]
[341194310,1730600305933,5000.0,0.00033511,30]
[341194314,1730600819093,-150.0,0.00024658,2]
[341194315,1730600819115,-8532.576318,0.00027321,2]
[341194318,1730600844129,-300.0,0.0002732,2]
[341194319,1730600844151,-16367.423682,0.00027321,2]
[341194320,1730600844174,-150.0,0.00027705,2]
[341194321,1730600844196,-1963.07851578,0.00027949,2]
[341194322,1730600844217,-420.0,0.00029526,2]
[341194323,1730600844237,-1301.76421086,0.00029686,2]
[341194324,1730600844258,-172.5080342,0.00029687,2]
[341194325,1730600844279,-500.0,0.00029786,2]
[341194326,1730600844300,-500.0,0.00029786,2]
[341194327,1730600844322,-533.79471948,0.00029786,2]
[341194328,1730600844344,-500.0,0.00029786,2]
[341194329,1730600844366,-587.71307798,0.00029786,2]
[341194330,1730600844387,-500.0,0.00029786,2]
[341194331,1730600844411,-385.55062351,0.00029786,2]
[341194332,1730600844434,-500.0,0.00029786,2]
[341194333,1730600844459,-500.0,0.00029786,2]
[341194334,1730600844483,-500.0,0.00029786,2]
[341194335,1730600844505,-500.0,0.00029786,2]
[341194336,1730600844527,-500.0,0.00029786,2]
[341194337,1730600844548,-500.0,0.00029786,2]
[341194338,1730600844575,-500.0,0.00029786,2]
[341194339,1730600844597,-500.0,0.00029786,2]
[341194340,1730600844619,-500.0,0.00029786,2]
[341194341,1730600844643,-500.0,0.00029786,2]
[341194342,1730600844665,-500.0,0.00029786,2]
[341194343,1730600844686,-500.0,0.00029786,2]
[341194344,1730600844708,-500.0,0.00029786,2]
[341194345,1730600844729,-500.0,0.00029786,2]
[341194346,1730600844750,-500.0,0.00029786,2]
[341194347,1730600844772,-500.0,0.00029786,2]
[341194348,1730600844794,-500.0,0.00029786,2]
[341194349,1730600844816,-500.0,0.00029786,2]
[341194350,1730600844835,-15886.52476004,0.00029789,2]
[341194351,1730600844855,-215.26025541,0.00029789,2]
[341194352,1730600844875,-500.0,0.00029933,2]
[341194353,1730600844895,-151.0,0.0003,120]
[341194354,1730600844915,-7393.78721,0.0003,120]
[341194355,1730600844936,-247.0,0.0003,2]
[341194356,1730600844957,-196.0,0.0003,2]
[341194357,1730600845087,-306.5453978,0.0003011,2]
[341194358,1730600845109,-303.0898104,0.0003011,2]
[341194359,1730600845129,-282.28246737,0.00030119,2]
[341194360,1730600845150,-273.55436657,0.00030119,2]
[341194361,1730600845173,-404.32915439,0.00030136,4]
[341194362,1730600845193,-500.0,0.00030136,4]
[341194363,1730600845214,-502.01938652,0.00030136,4]
[341194364,1730600845235,-371.32708465,0.00030136,4]
[341194365,1730600845256,-502.98257893,0.00030136,4]
[341194366,1730600845279,-500.0,0.00030136,4]
[341194367,1730600845299,-160.53461294,0.00030136,4]
[341194368,1730600845322,-500.0,0.00030136,4]
[341194369,1730600845346,-469.78183125,0.00030136,4]
[341194370,1730600845368,-500.0,0.00030136,4]
[341194371,1730600845391,-500.0,0.00030136,4]
[341194372,1730600845418,-500.0,0.00030136,4]
[341194373,1730600845442,-939.49,0.00030136,3]
[341194374,1730600845465,-500.0,0.00030136,4]
[341194375,1730600845488,-769.0,0.00030136,4]
[341194376,1730600845511,-500.0,0.00030136,4]
[341194377,1730600845535,-303.1683464,0.00030192,2]
[341194378,1730600845560,-493.15577369,0.0003041,4]
[341194379,1730600845582,-500.0,0.0003041,4]
[341194380,1730600845604,-500.0,0.0003041,4]
[341194381,1730600845626,-500.0,0.0003041,4]
[341194382,1730600845649,-500.0,0.0003041,4]
[341194383,1730600845673,-939.49,0.0003041,3]
[341194384,1730600845695,-500.0,0.0003041,4]
[341194385,1730600845718,-769.0,0.0003041,4]
[341194386,1730600845740,-500.0,0.0003041,4]
[341194387,1730600845760,-206.38609229,0.000305,120]
[341194388,1730600845783,-500.0,0.00030684,4]
[341194389,1730600845805,-500.0,0.00030684,4]
[341194390,1730600845827,-500.0,0.00030684,4]
[341194391,1730600845851,-500.0,0.00030684,4]
[341194392,1730600845875,-939.49,0.00030684,3]
[341194393,1730600845897,-209.63450015,0.00030684,4]
[341194394,1730600845920,-769.0,0.00030684,4]
[341194395,1730600845944,-500.0,0.00030684,4]
[341194396,1730600845966,-150.0,0.00030705,2]
[341194397,1730600845987,-302.7004024,0.00030877,2]
[341194398,1730600846010,-150.0,0.000309,6]
[341194399,1730600846032,-12706.73787599,0.00030945,2]
[341194400,1730600846054,-500.0,0.00030958,4]
[341194401,1730600846075,-500.0,0.00030958,4]
[341194402,1730600846096,-500.0,0.00030958,4]
[341194403,1730600846120,-500.0,0.00030958,4]
[341194404,1730600846143,-939.49,0.00030958,3]
[341194405,1730600846166,-769.0,0.00030958,4]
[341194406,1730600846188,-525.50932013,0.00030958,4]
[341194407,1730600846208,-628.52,0.0003098,3]
[341194408,1730600846230,-7112.25161064,0.00031,120]
[341194409,1730600846251,-6275.12,0.00031,10]
[341194410,1730600846274,-500.0,0.00031232,4]
[341194411,1730600846296,-500.0,0.00031232,4]
[341194412,1730600846317,-500.0,0.00031232,4]
[341194413,1730600846341,-500.0,0.00031232,4]
[341194414,1730600846363,-939.49,0.00031232,3]
[341194415,1730600846386,-769.0,0.00031232,4]
[341194416,1730600846407,-151.0,0.00031288,120]
[341194417,1730600846428,-186.567927,0.00031299,2]
[341194418,1730600846452,-182.224548,0.00031299,2]
[341194419,1730600846473,-172.318092,0.00031299,2]
[341194420,1730600846494,-184.612961,0.00031299,2]
[341194421,1730600846516,-171.226483,0.00031299,2]
[341194422,1730600846540,-295.380737,0.00031299,2]
[341194423,1730600846562,-447.763021,0.00031299,2]
[341194424,1730600846583,-203.386361,0.00031299,2]
[341194425,1730600846604,-512.61670527,0.00031303,2]
[341194426,1730600846626,-454.2184221,0.00031315,2]
[341194427,1730600846647,-172.50803419,0.00031406,2]
[341194428,1730600846670,-1301.76421086,0.00031431,2]
[341194429,1730600846697,-151.0,0.00031481,6]
[341194430,1730600846718,-2840.99,0.000315,2]
[341194431,1730600846741,-500.0,0.00031506,4]
[341194432,1730600846763,-500.0,0.00031506,4]
[341194433,1730600846784,-500.0,0.00031506,4]
[341194434,1730600846808,-500.0,0.00031506,4]
[341194435,1730600846831,-939.49,0.00031506,3]
[341194436,1730600846855,-769.0,0.00031506,4]
[341194437,1730600846876,-256.97808671,0.00031684,2]
[341194438,1730600846898,-453.9293286,0.00031699,2]
[341194439,1730600846923,-154.0510996,0.00031753,2]
[341194440,1730600846943,-153.0,0.00031753,2]
[341194441,1730600846963,-153.0,0.00031753,2]
[341194442,1730600846984,-153.0,0.00031753,2]
[341194443,1730600847004,-153.0,0.00031753,2]
[341194444,1730600847027,-500.0,0.0003178,4]
[341194445,1730600847048,-500.0,0.0003178,4]
[341194446,1730600847070,-500.0,0.0003178,4]
[341194447,1730600847093,-500.0,0.0003178,4]
[341194448,1730600847115,-939.49,0.0003178,3]
[341194449,1730600847139,-769.0,0.0003178,4]
[341194450,1730600847160,-705.113303,0.00031825,2]
[341194451,1730600847180,-15510.7876921,0.000319,2]
[341194452,1730600847200,-151.0,0.00031973,7]
[341194453,1730600847220,-5215.62298562,0.00031999,2]
[341194454,1730600847240,-108320.47455624,0.00032,15]
[341194455,1730600847261,-151.0,0.00032,120]
[341194456,1730600847282,-11513.0311954,0.00032,5]
[341194457,1730600847303,-284.0,0.00032,120]
[341194458,1730600847326,-500.0,0.00032054,4]
[341194459,1730600847347,-500.0,0.00032054,4]
[341194460,1730600847368,-500.0,0.00032054,4]
[341194461,1730600847391,-500.0,0.00032054,4]
[341194462,1730600847416,-939.49,0.00032054,3]
[341194463,1730600847440,-769.0,0.00032054,4]
[341194464,1730600847462,-1000.0,0.00032099,2]
[341194465,1730600847483,-6609.22,0.000321,30]
[341194466,1730600847505,-5188.94,0.000321,30]
[341194467,1730600847526,-1690.9,0.000321,14]
[341194468,1730600847547,-157.276776,0.000321,17]
[341194469,1730600847571,-500.0,0.00032173,5]
[341194470,1730600847592,-430.60074069,0.00032199,2]
[341194471,1730600847613,-461593.51341681,0.00032199,2]
[341194473,1730600882670,152.23283458,0.00033511,30]
[341194538,1730601036369,-150.84293585,0.00024658,2]
[341194539,1730601036379,-2590.22510407,0.00028852,2]
[341194540,1730601036388,-500.0,0.00030136,4]
[341194541,1730601036397,-500.0,0.00030136,4]
[341194542,1730601036406,-500.0,0.00030136,4]
[341194543,1730601036415,-500.0,0.00030136,4]
[341194544,1730601036425,-500.0,0.00030136,4]
[341194545,1730601036435,-626.33,0.00030136,3]
[341194546,1730601036446,-500.0,0.0003041,4]
[341194547,1730601036455,-500.0,0.0003041,4]
[341194548,1730601036464,-500.0,0.0003041,4]
[341194549,1730601036474,-500.0,0.0003041,4]
[341194550,1730601036483,-500.0,0.0003041,4]
[341194551,1730601036492,-626.33,0.0003041,3]
[341194552,1730601036502,-513.82191816,0.00030684,4]
[341194553,1730601036512,-500.0,0.00030684,4]
[341194554,1730601036526,-500.0,0.00030684,4]
[341194555,1730601036535,-500.0,0.00030684,4]
[341194556,1730601036547,-500.0,0.00030684,4]
[341194557,1730601036557,-626.33,0.00030684,3]
[341194558,1730601036567,-500.0,0.00030958,4]
[341194559,1730601036576,-500.0,0.00030958,4]
[341194560,1730601036586,-500.0,0.00030958,4]
[341194561,1730601036595,-500.0,0.00030958,4]
[341194562,1730601036604,-626.33,0.00030958,3]
[341194563,1730601036614,-500.0,0.00031232,4]
[341194564,1730601036623,-500.0,0.00031232,4]
[341194565,1730601036636,-500.0,0.00031232,4]
[341194566,1730601036645,-500.0,0.00031232,4]
[341194567,1730601036654,-626.33,0.00031232,3]
[341194568,1730601036664,-2556.89,0.000315,2]
[341194569,1730601036674,-500.0,0.00031506,4]
[341194570,1730601036683,-500.0,0.00031506,4]
[341194571,1730601036693,-500.0,0.00031506,4]
[341194572,1730601036703,-500.0,0.00031506,4]
[341194573,1730601036712,-626.33,0.00031506,3]
[341194574,1730601036722,-365.87232589,0.0003178,4]
[341194575,1730601036732,-500.0,0.0003178,4]
[341194576,1730601036741,-500.0,0.0003178,4]
[341194577,1730601036752,-500.0,0.0003178,4]
[341194578,1730601036761,-626.33,0.0003178,3]
[341194579,1730601036770,-500.0,0.00032054,4]
[341194580,1730601036780,-500.0,0.00032054,4]
[341194581,1730601036789,-500.0,0.00032054,4]
[341194582,1730601036800,-626.33,0.00032054,3]
[341194583,1730601036810,-976.32315818,0.00032089,2]
[341194584,1730601036819,-1000.0,0.00032099,2]
[341194585,1730601036829,-588.20928129,0.00032173,5]
[341194586,1730601036838,-509.74589755,0.00032188,2]
[341194587,1730601036847,-500.0,0.00032188,2]
[341194588,1730601036856,-320.61673595,0.00032188,2]
[341194589,1730601036866,-16337.97,0.00032189,10]
[341194590,1730601036876,-282.28246736,0.00032198,2]
[341194591,1730601036885,-273.55436656,0.00032198,2]
[341194592,1730601036895,-327.0,0.00032199,2]
[341194593,1730601036904,-32962.10086914,0.00032199,2]
[341194594,1730601036948,-645.72430238,0.00032199,2]
[341194629,1730601038718,-501.60871891,0.00032199,2]
[341194640,1730601040194,-90877.95366249,0.00032199,2]
[341194641,1730601040204,-150.112233,0.000322,11]
[341194642,1730601040213,-705.113303,0.00032325,2]
[341194643,1730601040222,-769.0,0.00032328,4]
[341194644,1730601040232,-329.9611462,0.00032328,4]
[341194645,1730601040241,-171.67889677,0.00032328,4]
[341194646,1730601040249,-500.0,0.00032328,4]
[341194647,1730601040258,-626.33,0.00032328,3]
[341194648,1730601040268,-150.112233,0.000324,17]
[341194649,1730601040278,-150.112235,0.000325,14]
[341194650,1730601040287,-150.11224,0.000325,18]
[341194651,1730601040301,-150.112233,0.000325,20]
[341194652,1730601040310,-150.112238,0.000325,11]
[341194653,1730601040319,-20803.68,0.00032514,10]
[341194654,1730601040328,-284160.30741716,0.00032524,30]
[341194655,1730601040368,-10738.17444626,0.00032524,30]
[341194656,1730601040379,-49386.75158981,0.00032524,30]
[341194683,1730601044562,-152.206,0.00027913,2]
[341194684,1730601044572,-150.0,0.00030913,2]
[341194685,1730601044581,-6559.37246415,0.00032524,30]
[341194686,1730601044592,-194959.30683741,0.00032524,30]
[341194687,1730601044724,-964.730702,0.00032524,30]
[341194688,1730601044737,-439985.07784921,0.00032524,30]
[341194689,1730601044747,-500.0,0.00032543,120]
[341194690,1730601044757,-500.0,0.00032543,120]
[341194691,1730601044768,-500.0,0.00032543,120]
[341194692,1730601044778,-500.0,0.00032543,120]
[341194693,1730601044788,-500.0,0.00032543,120]
[341194694,1730601044798,-500.0,0.00032543,120]
[341194695,1730601044808,-500.0,0.00032543,120]
[341194696,1730601044819,-500.0,0.00032543,120]
[341194697,1730601044829,-500.0,0.00032543,120]
[341194698,1730601044839,-500.0,0.00032543,120]
[341194699,1730601044848,-500.0,0.00032543,120]
[341194700,1730601044857,-500.0,0.00032543,120]
[341194701,1730601044868,-500.0,0.00032543,120]
[341194702,1730601044876,-452.84,0.00032543,120]
[341194703,1730601044885,-500.0,0.00032543,120]
[341194704,1730601044895,-500.0,0.00032543,120]
[341194705,1730601044905,-155.05135126,0.00032562,2]
[341194706,1730601044915,-500.0,0.00032573,5]
[341194707,1730601044926,-151.0,0.00032575,120]
[341194708,1730601044936,-4690.56,0.000326,30]
[341194709,1730601044946,-5985.43,0.000326,30]
[341194710,1730601044956,-1559.17,0.000326,14]
[341194711,1730601044967,-500.0,0.00032602,4]
[341194712,1730601044976,-626.33,0.00032602,3]
[341194713,1730601044987,-200.0,0.000327,120]
[341194714,1730601044997,-167.696,0.0003276,30]
[341194715,1730601045007,-20132.24294484,0.000328,3]
[341194716,1730601045017,-705.113303,0.00032825,2]
[341194717,1730601045027,-1500.0,0.00032876,2]
[341194718,1730601045037,-1000.0,0.00032876,30]
[341194719,1730601045049,-1000.0,0.00032876,30]
[341194720,1730601045059,-1000.0,0.00032876,30]
[341194721,1730601045069,-1000.0,0.00032876,30]
[341194722,1730601045079,-1000.0,0.00032876,30]
[341194723,1730601045090,-1000.0,0.00032876,30]
[341194724,1730601045099,-210.53367431,0.00032876,30]
[341194725,1730601045111,-500.0,0.00032876,7]
[341194726,1730601045122,-1000.0,0.00032876,2]
[341194727,1730601045132,-1000.0,0.00032876,2]
[341194728,1730601045143,-1000.0,0.00032876,2]
[341194729,1730601045152,-1000.0,0.00032876,2]
[341194730,1730601045162,-1000.0,0.00032876,2]
[341194731,1730601045172,-1000.0,0.00032876,2]
[341194732,1730601045181,-172.98770011,0.00032876,2]
[341194733,1730601045191,-500.0,0.00032876,4]
[341194734,1730601045201,-626.33,0.00032876,3]